[Event "II Duchamp Open 2018"]
[Site "Rio de Janeiro"]
[Date "2018.11.18"]
[Round "6"]
[White "Rodrigues, Nei Jorge"]
[Black "Reis, Virginia Lagrange M"]
[Result "0-1"]
[ECO "A38"]
[WhiteElo "1978"]
[BlackElo "1750"]
[Annotator "NA RC"]
[PlyCount "62"]
[EventDate "2018.11.14"]
[EventType "swiss"]
[EventCountry "BRA"]
[SourceTitle "playchess.com"]
[Source "ChessBase"]
[SourceQuality "1"]
[TimeControl "5400+30"]

1. Nf3 {[%emt 0:00:59]} c5 {[%emt 0:00:00]} 2. c4 {[%emt 0:00:06]} Nc6 {[%emt 0:00:07]} 3. g3 {[%emt 0:00:15]} g6 {[%emt 0:00:17]} 4. Bg2 {[%emt 0:00:09]} Bg7 {[%emt 0:00:18]} 5. O-O {[%emt 0:00:07]} Nf6 {[%emt 0:00:33]} 6. Nc3 {[%emt 0:00:09]} O-O {[%emt 0:00:21]} 7. d3 {[%emt 0:00:20]} d6 {[%emt 0:00:21]} 8. a3 {[%emt 0:00:59]} Bd7 {[%emt 0:02:04]} 9. Rb1 {[%emt 0:00:45]} a5 {[%emt 0:04:07]} 10. Bd2 {[%emt 0:05:09]} Rb8 {[%emt 0:00:53]} 11. Ne1 {[%emt 0:03:35] A38: Symmetrical English vs ...g6: 4 Bg2 Bg7 5 Nf3 Nf6} b6 {[%emt 0:04:04]} (11... Ne8 12. Nc2 Nc7 13. b4 axb4 14. axb4 Nxb4 15. Nxb4 cxb4 16. Rxb4 b5 17. cxb5 Nxb5 18. Nxb5 Rxb5 19. Rxb5 Bxb5 20. Qb3 Bd7 21. Qb7 Bg4 22. Bg5 Qb8 23. Bxe7 Qxb7 24. Bxb7 Re8 25. Bxd6 Bxe2 26. Re1 Re6 27. Bc5 Bxd3 28. Rxe6 fxe6 29. Kg2 Bc4 30. Kf3 Kf7 {½-½ (30) Sadorra,J (2577)-Ramirez,A (2597) Dallas 2013}) 12. Nc2 {[%emt 0:01:25]} Qc8 $146 {[%emt 0:02:21]} ({Predecessor:} 12... Nd4 13. b4 axb4 14. axb4 Bc6 15. Nxd4 Bxg2 16. Kxg2 cxd4 17. Nb5 e5 18. e3 dxe3 19. Bxe3 {1-0 (40) Micheli,C (2268)-Wittmann,W (2286) Rogaska Slatina 2012}) 13. Re1 {[%emt 0:00:33]} Re8 {[%emt 0:02:48]} 14. b4 {[%emt 0:00:28]} axb4 {[%emt 0:12:52]} 15. axb4 {[%emt 0:00:51]} Bg4 {[%emt 0:06:58]} 16. Qc1 {[%emt 0:05:21]} Ne5 {[%emt 0:03:59]} 17. Bf4 {[%emt 0:12:22]} Nh5 {[%emt 0:03:08]} 18. Bh6 {[%emt 0:05:24]} Nxd3 {[%emt 0:01:53]} 19. exd3 {[%emt 0:01:05]} Bxc3 {[%emt 0:00:35]} 20. Ne3 {[%emt 0:00:16]} Bxe1 {[%emt 0:03:43]} 21. Nxg4 {[%emt 0:00:30]} Bxb4 {[%emt 0:03:06]} 22. h3 {[%emt 0:14:29]} b5 {[%emt 0:12:11]} 23. Qb2 $2 {[%emt 0:15:54]} (23. cxb5 Rxb5 24. Ra1) 23... bxc4 {[%emt 0:02:37]} 24. Qa2 {[%emt 0:07:34]} cxd3 {[%emt 0:07:16]} 25. Qc4 {[%emt 0:00:55]} d2 {[%emt 0:04:12]} 26. Be3 {[%emt 0:05:35]} e6 {[%emt 0:09:12]} 27. Bf3 {[%emt 0:03:21]} d5 {[%emt 0:03:54]} 28. Nh6+ {[%emt 0:00:25]} Kg7 {[%emt 0:03:10]} 29. Qh4 {[%emt 0:04:04]} Qd8 {[%emt 0:03:46]} 30. Bg5 {[%emt 0:05:59]} f6 {[%emt 0:00:01]} 31. Be3 {[%emt 0:01:28]} d4 $19 {[%emt 0:00:28]} 0-1

[Event "II Duchamp Open 2018"]
[Site "Rio de Janeiro"]
[Date "2018.11.18"]
[Round "6"]
[White "Chang, Suzana"]
[Black "Maia, Jose Eduardo Bastos"]
[Result "1-0"]
[ECO "A14"]
[WhiteElo "1968"]
[BlackElo "2093"]
[Annotator "NA RC"]
[PlyCount "60"]
[EventDate "2018.11.14"]
[EventType "swiss"]
[EventCountry "BRA"]
[SourceTitle "playchess.com"]
[Source "ChessBase"]
[SourceQuality "1"]
[TimeControl "5400+30"]

1. c4 {[%emt 0:00:00]} e6 {[%emt 0:00:00]} 2. g3 {[%emt 0:00:14]} d5 {[%emt 0:00:00]} 3. Bg2 {[%emt 0:00:10]} Nf6 {[%emt 0:00:00]} 4. Nf3 {[%emt 0:00:12]} Be7 {[%emt 0:00:15]} 5. O-O {[%emt 0:00:08]} O-O {[%emt 0:00:07]} 6. d4 {[%emt 0:00:16]} c6 {[%emt 0:00:17]} 7. Qc2 {[%emt 0:00:57]} b6 {[%emt 0:00:27]} 8. Nbd2 {[%emt 0:00:22]} Bb7 {[%emt 0:00:34]} 9. e4 {[%emt 0:00:31]} Na6 {[%emt 0:01:04]} 10. e5 {[%emt 0:08:03]} Nd7 {[%emt 0:00:50]} 11. a3 {[%emt 0:03:44] E06: Closed Catalan: Early deviations} c5 {[%emt 0:09:47]} 12. dxc5 {[%emt 0:01:12]} bxc5 {[%emt 0:05:32]} 13. Re1 {[%emt 0:06:32]} Nc7 {[%emt 0:07:16] [#]} 14. Rb1 $146 {[%emt 0:18:21]} ({Predecessor:} 14. Nb3 Rb8 15. Na5 Ba8 16. Bd2 Nb6 17. b3 Qd7 18. Red1 f6 {½-½ (35) Dziuba,M (2558)-Buhmann,R (2612) Germany 2016}) 14... a5 {[%emt 0:03:18]} 15. b3 {[%emt 0:00:51]} Nb6 {[%emt 0:12:22]} 16. h4 {[%emt 0:10:20]} h6 {[%emt 0:00:26]} 17. Bf1 {[%emt 0:06:58]} Qd7 {[%emt 0:12:30]} 18. Be2 {[%emt 0:03:58]} Rfc8 {[%emt 0:00:51]} 19. Nf1 {[%emt 0:02:11]} Rcb8 {[%emt 0:07:16]} 20. N1h2 {[%emt 0:13:40]} a4 {[%emt 0:01:06]} 21. Ng4 {[%emt 0:05:03]} (21. Bxh6 $1 $11 gxh6 22. Qc1) 21... axb3 {[%emt 0:00:51]} (21... h5 $17 22. Ne3 d4 23. bxa4 Bc6) 22. Rxb3 {[%emt 0:00:49]} Nxc4 {[%emt 0:01:22] [#]} 23. Qb1 $2 {[%emt 0:00:22]} (23. Bxh6 $1 $14 {[%mdl 512] was forced to keep a grip.} gxh6 24. Qc1) 23... Na6 $2 {[%emt 0:16:04] [#]} (23... Na5 $19 24. Rb6 d4) 24. Bxh6 $1 {[%emt 0:06:39]} gxh6 {[%emt 0:05:28]} 25. Nxh6+ {[%emt 0:02:59]} Kg7 {[%emt 0:00:58]} 26. Nxf7 {[%emt 0:02:21]} Bc6 $2 {[%emt 0:07:40]} ({Don't go for} 26... Kxf7 $2 27. Ng5+ Ke8 28. Qg6+ Kd8 29. Nxe6+ Kc8 30. Bg4 $18) (26... Nxa3 $16 27. Rxa3 Bc8) 27. N3g5 {[%emt 0:01:10]} Bxg5 {[%emt 0:01:17]} 28. Nxg5 {[%emt 0:00:02]} Rh8 {[%emt 0:00:43]} 29. Rf3 $2 {[%emt 0:03:12]} (29. Rd1 $18) 29... Nxe5 $2 {[%emt 0:01:20]} (29... Nd2 $17 30. Nxe6+ Qxe6) 30. Re3 {[%emt 0:01:16]} Nc4 1-0

[Event "II Duchamp Open 2018"]
[Site "Rio de Janeiro"]
[Date "2018.11.18"]
[Round "6"]
[White "Ramos, Angelo Bil"]
[Black "Peixoto, Rudson Marinho"]
[Result "0-1"]
[ECO "B90"]
[WhiteElo "1952"]
[BlackElo "2007"]
[Annotator "NA RC"]
[PlyCount "78"]
[EventDate "2018.11.14"]
[EventType "swiss"]
[EventCountry "BRA"]
[SourceTitle "playchess.com"]
[Source "ChessBase"]
[SourceQuality "1"]
[TimeControl "5400+30"]

1. e4 {[%emt 0:00:00]} c5 {[%emt 0:02:02]} 2. Nf3 {[%emt 0:00:00]} d6 {[%emt 0:00:08]} 3. d4 {[%emt 0:00:00]} cxd4 {[%emt 0:00:10]} 4. Nxd4 {[%emt 0:00:05]} Nf6 {[%emt 0:00:02]} 5. Nc3 {[%emt 0:00:10]} a6 {[%emt 0:00:06]} 6. h3 {[%emt 0:02:03]} Qc7 {[%emt 0:00:16]} 7. g4 {[%emt 0:00:40]} b5 {[%emt 0:01:20]} 8. Bg2 {[%emt 0:00:35]} Bb7 {[%emt 0:00:10]} 9. O-O {[%emt 0:04:03]} e6 {[%emt 0:00:04]} 10. a3 {[%emt 0:01:59]} Nc6 {[%emt 0:00:29]} 11. Re1 {[%emt 0:01:43]} Be7 {[%emt 0:00:14]} 12. Nde2 {[%emt 0:10:59]} h5 {[%emt 0:01:46]} 13. g5 {[%emt 0:01:13]} Nd7 {[%emt 0:00:12]} 14. h4 {[%emt 0:00:12]} Nce5 {[%emt 0:01:05]} 15. Ng3 {[%emt 0:02:01]} O-O-O {[%emt 0:01:35]} 16. Qe2 {[%emt 0:01:16]} Ng6 {[%emt 0:00:26]} 17. Bf3 {[%emt 0:05:35]} Nxh4 {[%emt 0:00:16]} 18. Bxh5 {[%emt 0:00:27]} g6 {[%emt 0:00:16]} 19. Qg4 {[%emt 0:05:15]} gxh5 {[%emt 0:02:10]} 20. Qxh4 Ne5 21. Kg2 {[%emt 0:05:05]} Ng6 {[%emt 0:01:22]} 22. Qh3 {[%emt 0:01:12]} Kb8 {[%emt 0:00:46]} 23. f3 {[%emt 0:04:08]} d5 {[%emt 0:00:36]} 24. exd5 {[%emt 0:00:27]} exd5 {[%emt 0:00:10]} 25. Nf5 {[%emt 0:00:31]} d4 {[%emt 0:00:56]} 26. Nxe7 {[%emt 0:02:04]} Nxe7 {[%emt 0:01:23]} 27. Qh2 {[%emt 0:02:58]} Bxf3+ {[%emt 0:00:29]} 28. Kxf3 {[%emt 0:03:10]} Qxh2 {[%emt 0:00:12]} 29. Bf4+ {[%emt 0:00:09]} Qxf4+ {[%emt 0:00:16]} 30. Kxf4 {[%emt 0:00:20]} Ng6+ {[%emt 0:00:04]} 31. Kf5 {[%emt 0:00:17]} dxc3 {[%emt 0:00:07]} 32. bxc3 {[%emt 0:00:17]} Rd6 {[%emt 0:01:07]} 33. Rab1 {[%emt 0:00:43]} Rc8 {[%emt 0:00:46]} 34. a4 {[%emt 0:00:25]} Rc5+ {[%emt 0:00:09]} 35. Ke4 {[%emt 0:01:19]} Kc7 {[%emt 0:00:42]} 36. axb5 {[%emt 0:00:14]} axb5 {[%emt 0:00:15]} 37. Rf1 {[%emt 0:01:12]} Re5+ {[%emt 0:00:43]} 38. Kf3 {[%emt 0:00:10]} Rxg5 {[%emt 0:00:34]} 39. Rh1 {[%emt 0:01:11]} Rc6 0-1

[Event "II Duchamp Open 2018"]
[Site "Rio de Janeiro"]
[Date "2018.11.19"]
[Round "7"]
[White "Matsuura, Everaldo"]
[Black "Romanishin, Oleg M"]
[Result "1/2-1/2"]
[ECO "C45"]
[WhiteElo "2476"]
[BlackElo "2435"]
[Annotator "RC"]
[PlyCount "61"]
[EventDate "2018.11.14"]
[EventType "swiss"]
[EventCountry "BRA"]
[SourceTitle "playchess.com"]
[Source "ChessBase"]
[SourceQuality "1"]
[TimeControl "5400+30"]

1. e4 {[%emt 0:00:00]} e5 {[%emt 0:00:00]} 2. Nf3 {[%emt 0:00:03]} Nc6 {[%emt 0:00:00]} 3. d4 {[%emt 0:00:21]} exd4 {[%emt 0:00:00]} 4. Nxd4 {[%emt 0:00:10]} Bc5 {[%emt 0:00:00]} 5. Nb3 {[%emt 0:00:19]} Bb4+ {[%emt 0:02:17]} 6. c3 {[%emt 0:00:34]} Be7 {[%emt 0:00:03]} 7. Bf4 {[%emt 0:00:52]} Bg5 {[%emt 0:00:18]} 8. Qd2 {[%emt 0:10:16]} Bxf4 {[%emt 0:02:51]} 9. Qxf4 {[%emt 0:00:45]} Nf6 {[%emt 0:00:11]} 10. N1d2 {[%emt 0:02:43]} O-O {[%emt 0:02:18]} 11. O-O-O {[%emt 0:02:26]} d6 {[%emt 0:01:39]} 12. Kb1 {[%emt 0:03:49]} Nh5 {[%emt 0:13:50]} 13. Qf3 {[%emt 0:13:45]} Ne5 {[%emt 0:11:46]} 14. Qe2 {[%emt 0:03:51]} Qf6 {[%emt 0:03:22]} 15. h3 {[%emt 0:02:41]} Qh6 {[%emt 0:18:46]} 16. Nd4 {[%emt 0:04:36]} f5 {[%emt 0:07:59]} 17. Nxf5 {[%emt 0:12:07]} Bxf5 {[%emt 0:00:20]} 18. exf5 {[%emt 0:00:07]} Rxf5 {[%emt 0:01:09]} 19. Ne4 {[%emt 0:01:56]} Nf6 {[%emt 0:13:46]} 20. Ng3 {[%emt 0:03:05]} Rf4 {[%emt 0:00:24]} 21. Qc2 {[%emt 0:01:12]} Qg6 {[%emt 0:07:01]} 22. Qxg6 {[%emt 0:00:35]} Nxg6 {[%emt 0:00:04]} 23. f3 {[%emt 0:00:40]} Nh4 {[%emt 0:00:36]} 24. Rg1 {[%emt 0:04:20]} Nf5 {[%emt 0:04:00]} 25. Nxf5 {[%emt 0:07:47]} Rxf5 {[%emt 0:00:02]} 26. Bc4+ {[%emt 0:00:10]} Kf8 {[%emt 0:00:23]} 27. Rge1 {[%emt 0:00:28]} Re8 {[%emt 0:01:37]} 28. Be6 {[%emt 0:02:09]} Re5 {[%emt 0:01:40]} 29. Rxe5 {[%emt 0:00:46]} dxe5 {[%emt 0:00:02]} 30. Bb3 {[%emt 0:04:15]} e4 {[%emt 0:00:17]} 31. fxe4 1/2-1/2

[Event "II Duchamp Open 2018"]
[Site "Rio de Janeiro"]
[Date "2018.11.19"]
[Round "7"]
[White "Ferreira, Kleber Victor"]
[Black "Fucs, Paulo Moses"]
[Result "1/2-1/2"]
[ECO "B24"]
[WhiteElo "2053"]
[BlackElo "2016"]
[Annotator "NA"]
[PlyCount "112"]
[EventDate "2018.11.14"]
[EventType "swiss"]
[EventCountry "BRA"]
[SourceTitle "playchess.com"]
[Source "ChessBase"]
[SourceQuality "1"]
[TimeControl "5400+30"]

{[%evp 11,112,34,30,0,32767,32767,33,32767,31,32767,32767,0,0,32767,32767,-21,-4,-14,0,-45,-35,-39,-22,-70,-61,-65,-58,-64,-68,-100,-95,32767,32767,-47,32767,32767,-33,-48,-37,-193,0,-77,-64,-31,32767,32767,32767,32767,-25,-73,-74,-71,0,-9,-11,-18,32767,32767,-41,32767,32767,32767,162,186,200,237,262,282,274,264,479,609,745,264,251,32767,32767,32767,32767,32767,32767,32767,32767,20,32767,32767,32767,32767,32767,54,32767,32767,32767,32767,32767,32767,32767,32767,66,32767,32767,56,56]} 1. e4 {[%emt 0:00:00]} c5 {[%emt 0:00:00]} 2. Nc3 {[%emt 0:00:00]} Nc6 {[%emt 0:01:18]} 3. Bb5 {[%emt 0:00:08]} g6 {[%emt 0:00:46]} 4. Bxc6 {[%emt 0:00:06]} dxc6 {[%emt 0:00:31]} 5. d3 {[%emt 0:00:36]} Bg7 {[%emt 0:00:54]} 6. f4 {[%emt 0:04:37] B23: Closed Sicilian: Lines without g3} c4 {[%emt 0:01:58]} (6... Nf6 7. Nf3 Nd7 8. O-O b6 9. Qe1 Nf8 10. f5 gxf5 11. Nh4 fxe4 12. dxe4 Ng6 13. Nf5 O-O {0-1 (32) Najer,E (2658)-Savchenko,B (2567) Moscow 2015}) 7. Nf3 {[%emt 0:00:11]} cxd3 {[%emt 0:00:24]} 8. cxd3 {[%emt 0:00:03]} Nf6 {[%emt 0:01:40] LiveBook: 5 Games} 9. O-O {[%emt 0:00:15]} O-O {[%emt 0:04:29]} 10. Kh1 {[%emt 0:09:32]} Qa5 $146 {[%emt 0:03:21]} ({Predecessor:} 10... c5 11. Be3 b6 12. Qe2 Bb7 13. Rad1 Qc7 {1-0 (37) Bodnaruk,A (2475)-Maslova,P (2095) Sochi 2016}) 11. Ne5 {[%emt 0:03:07]} Be6 {[%emt 0:05:05]} 12. Qf3 {[%emt 0:08:06]} Rad8 {[%emt 0:01:45]} 13. Be3 {[%emt 0:09:17]} Ne8 {[%emt 0:06:09]} 14. d4 {[%emt 0:04:13]} Nd6 {[%emt 0:02:47]} 15. d5 {[%emt 0:13:51]} cxd5 {[%emt 0:00:43]} 16. exd5 {[%emt 0:00:32]} Bc8 {[%emt 0:05:15]} 17. Qf2 {[%emt 0:01:44]} Nb5 {[%emt 0:09:13]} 18. Nxb5 {[%emt 0:04:33]} Qxb5 {[%emt 0:00:17]} 19. Bxa7 {[%emt 0:00:56]} Rxd5 {[%emt 0:01:33]} 20. Be3 {[%emt 0:00:53]} Bf5 {[%emt 0:10:06]} 21. Bd4 {[%emt 0:05:45]} Rfd8 {[%emt 0:00:52]} 22. Bc3 {[%emt 0:00:13]} e6 {[%emt 0:02:39]} 23. Rfe1 {[%emt 0:03:35]} Qa4 {[%emt 0:13:19]} 24. h3 {[%emt 0:07:05]} h5 {[%emt 0:06:09]} 25. a3 {[%emt 0:01:21]} (25. Qh4 $15) 25... Bh6 $2 {[%emt 0:00:47]} (25... f6 $19 26. Nf3 Qxf4) 26. g4 {[%emt 0:06:19]} (26. Qh4 $1 $11 Bg7 27. Rac1) 26... hxg4 {[%emt 0:03:00]} 27. hxg4 {[%emt 0:00:05]} Bd3 {[%emt 0:02:34]} 28. g5 {[%emt 0:00:29]} Bg7 {[%emt 0:01:12]} 29. Rac1 {[%emt 0:03:00]} Bf5 {[%emt 0:00:38]} 30. Kh2 {[%emt 0:04:57]} Qb3 {[%emt 0:00:45]} 31. Re3 $1 {[%emt 0:02:26] [#]} Qa4 {[%emt 0:01:24]} (31... Rd1 $1 $17 {[%cal Rd1c1]} 32. Rxd1 Rxd1) 32. Kg3 {[%emt 0:00:19]} Rd1 {[%emt 0:02:24]} 33. Rxd1 {[%emt 0:00:19]} Qxd1 {[%emt 0:00:30]} 34. Re1 {[%emt 0:02:06]} Qh5 {[%emt 0:03:28]} 35. Qh2 {[%emt 0:01:47]} Bxe5 {[%emt 0:00:52]} 36. Qxh5 {[%emt 0:00:26]} Bxc3 $2 {[%emt 0:02:02] [#]} (36... Bxf4+ $15 {stays ahead.} 37. Kxf4 gxh5) 37. Qe2 $1 {[%emt 0:03:25]} Rd3+ {[%emt 0:00:29]} 38. Kf2 {[%emt 0:00:52]} Bd4+ {[%emt 0:01:36]} (38... Bxe1+ $142 39. Kxe1 (39. Qxe1 Rb3 $16) 39... b5) 39. Kg2 {[%emt 0:01:04]} Rb3 {[%emt 0:02:21]} 40. Qc4 {[%emt 0:00:56]} Rxb2+ $2 {[%emt 0:00:45]} (40... Rd3 41. Re2 b6) 41. Re2 {[%emt 0:00:05]} Be4+ {[%emt 0:01:30]} 42. Kg3 {[%emt 0:00:08]} (42. Kf1 $142 Rb1+ 43. Re1 Bg2+ 44. Kxg2 Rxe1 45. Qxd4) 42... Bd5 {[%emt 0:01:11]} 43. Qxd4 {[%emt 0:01:17]} Rxe2 {[%emt 0:00:19]} 44. Qf6 {[%emt 0:00:30]} Rg2+ {[%emt 0:00:54]} 45. Kh3 {[%emt 0:00:11]} Ra2 {[%emt 0:00:29]} 46. Qd8+ {[%emt 0:00:17]} Kh7 {[%emt 0:00:36]} 47. Qe7 {[%emt 0:00:59]} e5 {[%emt 0:00:42]} 48. fxe5 {[%emt 0:00:21]} Be6+ {[%emt 0:00:12]} 49. Kg3 {[%emt 0:00:27]} b5 {[%emt 0:00:21]} 50. Kf4 $14 {[%emt 0:00:18]} Rc2 {[%emt 0:00:14]} 51. Ke3 {[%emt 0:00:28]} Rc4 {[%emt 0:00:08]} 52. Kd2 {[%emt 0:00:35]} Rf4 {[%emt 0:00:17]} 53. Ke3 {[%emt 0:00:24]} Ra4 {[%emt 0:00:46]} 54. Qd6 {[%emt 0:00:52]} Rh4 {[%emt 0:00:28]} (54... Rg4 $1 $11) 55. Qe7 {[%emt 0:00:24]} Rh3+ {[%emt 0:00:26]} 56. Kd4 {[%emt 0:00:37]} Rb3 {[%emt 0:00:57]} 1/2-1/2

[Event "II Duchamp Open 2018"]
[Site "Rio de Janeiro"]
[Date "2018.11.19"]
[Round "7"]
[White "Okamura, Milton Kasuo"]
[Black "Moccero, Eduardo"]
[Result "1/2-1/2"]
[ECO "D27"]
[WhiteElo "2038"]
[BlackElo "1945"]
[Annotator "NA RC"]
[PlyCount "50"]
[EventDate "2018.11.14"]
[EventType "swiss"]
[EventCountry "BRA"]
[SourceTitle "playchess.com"]
[Source "ChessBase"]
[SourceQuality "1"]
[TimeControl "5400+30"]

{[%evp 8,50,29,23,38,32,32767,32767,16,16,32767,32767,32767,32767,32767,13,27,32767,10,16,49,44,32767,57,80,32,30,41,99,14,35,7,37,32767,32767,32767,32767,32767,32767,32767,32767,32767,32767,-122,-136]} 1. d4 {[%emt 0:13:18]} d5 {[%emt 0:00:23]} 2. c4 {[%emt 0:00:08]} dxc4 {[%emt 0:00:06]} 3. Nf3 {[%emt 0:00:10]} Nf6 {[%emt 0:00:34]} 4. e3 {[%emt 0:00:26]} e6 {[%emt 0:00:19]} 5. Bxc4 {[%emt 0:00:09]} c5 {[%emt 0:00:24]} 6. O-O {[%emt 0:00:17]} a6 {[%emt 0:00:51]} 7. a4 {[%emt 0:00:16]} Nc6 {[%emt 0:01:07]} 8. Nc3 {[%emt 0:00:29]} cxd4 {[%emt 0:01:39]} 9. exd4 {[%emt 0:00:14]} Be7 {[%emt 0:01:57]} 10. d5 {[%emt 0:03:30]} exd5 {[%emt 0:01:25]} 11. Nxd5 {[%emt 0:00:08]} Nxd5 {[%emt 0:01:10]} 12. Bxd5 {[%emt 0:00:05] D27: Queen's Gambit Accepted: Classical main line: 7 e4!? and 7 a4} O-O {[%emt 0:00:43] LiveBook: 6 Games} 13. Qb3 {[%emt 0:00:21]} (13. Be3 Nb4 14. Bb3 Bf5 15. Nd4 Bd3 16. Re1 Bf6 17. Qd2 a5 18. Nb5 Bc2 19. Bc4 Bxb2 20. Rad1 Bxd1 21. Qxb2 Rc8 22. Qc3 Nd5 23. Bxd5 Rxc3 24. Nxc3 Bxa4 25. Ba2 Bc6 {0-1 (25) Lysyj,I (2617)-Naiditsch,A (2697) Mainz 2009}) 13... Qc7 {[%emt 0:08:44]} 14. Be3 {[%emt 0:02:47]} Bf6 $146 {[%emt 0:04:58]} ({Predecessor:} 14... Qd6 15. Rac1 Na5 16. Qa2 Be6 17. Bxe6 Qxe6 18. Qxe6 fxe6 {1-0 (32) Wyder,B (2017)-Gerard,A (1952) ICCF email 2012}) 15. Rac1 {[%emt 0:01:31]} Bg4 {[%emt 0:09:28]} 16. Bb6 {[%emt 0:13:23]} Qd7 {[%emt 0:05:47]} 17. Rfd1 {[%emt 0:01:03]} Qf5 {[%emt 0:06:44]} (17... Be6 $14) 18. Re1 {[%emt 0:04:32]} (18. h3 $16 Bxf3 19. Bxf3) 18... Rac8 {[%emt 0:06:32]} 19. Rcd1 {[%emt 0:14:00]} (19. h3 $5 {[%cal Rh3g4]} Bxf3 20. Bxf3 $16) 19... Qg6 {[%emt 0:06:06]} 20. Be4 {[%emt 0:10:51]} Bf5 {[%emt 0:01:49]} 21. Bxf5 {[%emt 0:00:25]} Qxf5 {[%emt 0:00:09]} 22. Rd5 {[%emt 0:00:23]} Qf4 {[%emt 0:01:24]} 23. Rd7 {[%emt 0:01:14]} Ne5 {[%emt 0:04:31]} 24. Nxe5 {[%emt 0:02:24]} Bxe5 {[%emt 0:00:12]} 25. Qg3 $17 {[%emt 0:08:11] [#]} (25. g3 $14 {is the one way to stay ahead.} Qf6 26. Rxb7) 25... Rc1 $1 {[%emt 0:01:23]} 1/2-1/2

[Event "II Duchamp Open 2018"]
[Site "Rio de Janeiro"]
[Date "2018.11.19"]
[Round "7"]
[White "Urquiza, Marcello de Albuque"]
[Black "Pimentel, Rafael Favarin G."]
[Result "0-1"]
[ECO "B15"]
[WhiteElo "2018"]
[BlackElo "1886"]
[Annotator "NA RC"]
[PlyCount "36"]
[EventDate "2018.11.14"]
[EventType "swiss"]
[EventCountry "BRA"]
[SourceTitle "playchess.com"]
[Source "ChessBase"]
[SourceQuality "1"]
[TimeControl "5400+30"]

{[%evp 11,36,10,32767,32767,32767,2,32767,32767,8,32767,19,32767,14,32767,0,15,8,0,20,0,27,-87,-34,-80,-85,-78,-87]} 1. e4 {[%emt 0:00:00]} c6 {[%emt 0:03:34]} 2. d4 {[%emt 0:00:00]} d5 {[%emt 0:00:03]} 3. Nd2 {[%emt 0:00:00]} dxe4 {[%emt 0:00:04]} 4. Nxe4 {[%emt 0:00:08]} Nf6 {[%emt 0:00:03]} 5. Ng3 {[%emt 0:02:05]} h5 {[%emt 0:01:26]} 6. h4 {[%emt 0:03:09] LiveBook: 24 Games} Bg4 {[%emt 0:00:05]} 7. Be2 {[%emt 0:00:59]} Qc7 {[%emt 0:01:42]} 8. Bg5 {[%emt 0:03:07] B15: Caro-Kann: 3 Nc3: 3...g6 and 3...dxe4 4 Nxe4 Nf6 5 Nxf6+ exf6} (8. Nf3 Nbd7 9. c3 e6 10. Ng5 Bd6 11. N3e4 Nxe4 12. Nxe4 Bxe2 13. Qxe2 Bf4 14. Bxf4 Qxf4 15. g3 Qc7 {1-0 (77) Plat,V (2443)-Jablonicky,F (2128) Kouty nad Desnou 2015}) 8... Nbd7 {[%emt 0:00:57]} 9. Qd2 {[%emt 0:00:12]} O-O-O {[%emt 0:02:07]} 10. O-O-O {[%emt 0:02:25]} e6 $146 {[%emt 0:09:38]} ({Predecessor:} 10... e5 11. Bxg4 hxg4 12. N1e2 g6 13. dxe5 Qxe5 14. Bf4 Qb5 15. Nc3 Qa5 {0-1 (49) Byambacogt,T-Krizanovic,Z Istanbul 2004}) 11. f3 {[%emt 0:03:22]} Bd6 {[%emt 0:07:47]} 12. Nf1 {[%emt 0:30:37]} Bf5 {[%emt 0:10:24]} 13. Ne3 {[%emt 0:00:15]} Bf4 {[%emt 0:00:29]} 14. Bxf4 {[%emt 0:07:43]} Qxf4 {[%emt 0:00:10]} 15. Nxf5 {[%emt 0:02:13]} Qxf5 {[%emt 0:01:25]} 16. Bd3 {[%emt 0:00:39]} (16. Nh3 $14 {keeps the upper hand.}) 16... Qd5 $1 {[%emt 0:00:39] Double Attack} 17. Ne2 {[%emt 0:00:06]} Qxa2 {[%emt 0:00:23]} 18. c4 {[%emt 0:06:05]} Qa1+ $17 {[%emt 0:07:41] Kb1 [%clk 0:34:18] Qa4 [%clk 0:43:58] Nc3 [%clk 0:34:31] a5 [%clk 0:43:53]} 0-1